Cogmind - Beta 16.1 @@@ ROGUE MODE // 2026.04.03 @ 19:57:14 Player: Minty Result: Self-destructed Performance ------------- Evolutions (3) 1500 Regions Visited (7) 1400 Robots Destroyed (45) 225 Value Destroyed (1387) 1387 Prototype IDs (27) 540 Alien Tech Used (0) 0 Bonus (986) 986 TOTAL SCORE: 6038 Bonus ------- High Alert Combat Kills 100 Follower Combat Kills 386 Entered Garrisons 200 Aligned with FarCom 300 Cogmind --------- Core Integrity 47/700 Matter 116/300 Energy 100/100 System Corruption 4% Temperature Cool (0) Movement Core (50) Location -7/Garrison Parts ------- > --- POWER (1) -------- (None) > --- PROPULSION (3) --- (None) > --- UTILITY (7) ------ Machine Analyzer Armor Integrity Analyzer > --- WEAPON (2) ------- (None) > --- INVENTORY (5) ---- Cooled Deuterium Engine Cooled Deuterium Engine Cooled Deuterium Engine Peak State ------------ > --- POWER ------------ Cooled Deuterium Engine > --- PROPULSION ------- Wheel Wheel Wheel > --- UTILITY ---------- Army-in-a-Box > --- WEAPON ----------- YOLO Cannon > --- INVENTORY -------- Cooled Deuterium Engine Cooled Deuterium Engine Improved Grenade Launcher Improved Grenade Launcher Plasma Flamer [Rating: 84] Favorites ----------- Power Ion Engine Engine Ion Engine Propulsion Light Treads Treads Light Treads Leg Aluminum Leg Wheel Wheel Flight Unit VTOL Module Utility Small Storage Unit Device Army-in-a-Box Storage Small Storage Unit Processor Armor Integrity Analyzer Hackware Hacking Suite Protection Core Shielding Weapon Plasma Flamer Energy Gun Medium Laser Energy Cannon YOLO Cannon Ballistic Gun Assault Rifle Launcher Mini Grenade Launcher Special Weapon Plasma Flamer Build | -11 -10 -10 -10 -9 -8 -7 -7 ------- Run | Yrd Mat Min Exi Min Mat Fac Gar Slots Evolved 6 | . . . . . 4 2 . Power . | . . . . . . . . Propulsion 1 | . . . . . . 1 . Utility 5 | . . . . . 4 1 . Weapon . | . . . . . . . . Parts Attached 35 | . 5 8 4 1 12 5 . Power 5 | . . 1 . 1 3 . . Engine 5 | . . 1 . 1 3 . . Core . | . . . . . . . . Reactor . | . . . . . . . . Propulsion 12 | . 2 3 . . 5 2 . Treads 2 | . . 2 . . . . . Leg 3 | . 2 . . . 1 . . Wheel 5 | . . 1 . . 3 1 . Hover . | . . . . . . . . Flight 2 | . . . . . 1 1 . Utility 8 | . 1 2 2 . 1 2 . Device 2 | . 1 . . . 1 . . Storage 1 | . . . 1 . . . . Processor 2 | . . . . . . 2 . Hackware 1 | . . . 1 . . . . Protection 2 | . . 2 . . . . . Artifact . | . . . . . . . . Weapon 10 | . 2 2 2 . 3 1 . Energy Gun 3 | . 1 1 . . 1 . . Energy Cannon 1 | . . . 1 . . . . Ballistic Gun 1 | . . . . . 1 . . Ballistic Cannon . | . . . . . . . . Launcher 4 | . 1 1 . . 1 1 . Special Weapon 1 | . . . 1 . . . . Impact Weapon . | . . . . . . . . Slashing Weapon . | . . . . . . . . Piercing Weapon . | . . . . . . . . Special Melee Weapon . | . . . . . . . . Unidentified Prototypes 4 | . . . . . 3 1 . Corrupted Parts 1 | . . . . . . 1 . System Corruption 2 | . . . . . . 2 . Parts Lost 18 | . . 9 . . 1 6 2 Power 3 | . . 2 . . 1 . . Propulsion 6 | . . 3 . . . 3 . Utility 1 | . . . . . . 1 . Weapon 8 | . . 4 . . . 2 2 Highest Loss Streak 5 | . . 3 . . 1 5 2 To Critical Strikes . | . . . . . . . . Average Backups 4 | 6 7 4 4 2 3 4 4 Power . | 1 1 . . . . 2 3 Propulsion . | 4 3 1 . . . . . Utility 1 | . . 2 2 1 . . . Weapon 2 | 1 1 . 2 1 3 2 1 Tool/Special . | . . . . . . . . Unused Backups 13 | . 5 2 1 . 3 . 2 Power 5 | . 1 1 . . 1 . 2 Propulsion 2 | . 2 . . . . . . Utility 1 | . 1 . . . . . . Weapon 4 | . 1 1 . . 2 . . Tool/Special 1 | . . . 1 . . . . Average Slot Usage (%) 62 | . 88 91 53 73 51 32 23 Engine 6 | . 14 11 . 2 8 4 . Treads 9 | . . 15 14 14 5 . . Leg 4 | . 28 11 . . . . . Wheel 3 | . . . . . 6 11 . Flight 1 | . . . . . 3 1 7 Device 4 | . 3 5 . . 8 4 . Storage 7 | . 14 12 11 14 . . . Hackware 2 | . . . 5 14 . . . Protection 4 | . . 9 10 . . . . Energy Gun 5 | . 13 17 . . 1 . . Ballistic Gun 1 | . 14 1 . . . . . Launcher 5 | . . 5 5 14 6 1 . Special Weapon 4 | . . . 5 14 7 1 . Peak Build Rating 84 | 6 8 8 24 20 83 84 19 Average Rating 31 | 6 6 6 11 19 65 54 14 On Entrance 20 | 6 6 8 4 19 20 83 14 Avg Prop Armor Cover (%) 28 | . . 38 35 . 1 . . Naked Turns . | . . . . . . . . Heaviest Build 109 | 14 15 15 24 12 109 109 . Greatest Support 40 | 20 20 40 20 20 20 30 7 Greatest Overweight (x) 8 | . . 3 1 . 8 7 . Average Overweight (x) . | . . . . . 3 1 . Largest Inventory Capacity 8 | 8 8 8 8 8 8 5 5 Average Capacity 6 | 8 8 7 7 8 5 5 5 Most Carried 8 | 6 8 8 8 8 8 5 5 Average Carried 5 | 6 7 4 6 8 5 4 3 Final Capacity 8 | 8 8 5 8 8 5 5 5 Final Carried 8 | 6 8 5 8 8 5 5 3 Class Distribution -------------------- 100% | Mutant Dominant Class ---------------- Mutant | -10/Materials Mutant | -10/Mines Mutant | -10/Exiles Mutant | -9/Mines Mutant | -8/Materials Mutant | -7/Factory Mutant | -7/Garrison Resources | -11 -10 -10 -10 -9 -8 -7 -7 ----------- Run | Yrd Mat Min Exi Min Mat Fac Gar Matter Collected 905 | 200 . 173 221 . 210 101 . Remotely . | . . . . . . . . Salvage Created 1313 | . 56 304 . . 415 538 . Parts 63 | . 8 12 . . 22 21 . Haulers Intercepted 1 | . . . . . 1 . . Recyclers Shooed . | . . . . . . . . Parts Field Recycled . | . . . . . . . . Retrieved Matter . | . . . . . . . . Parts Self-Destructed . | . . . . . . . . Prevented . | . . . . . . . . Parts Restored . | . . . . . . . . Kills | -11 -10 -10 -10 -9 -8 -7 -7 ------- Run | Yrd Mat Min Exi Min Mat Fac Gar Combat Hostiles Destroyed 43 | . 3 22 . . 4 14 . Guns 10 | . 3 5 . . 2 . . Cannons 5 | . . . . . 1 4 . AOE 28 | . . 17 . . 1 10 . Classes Destroyed 13 | . 2 5 . . 5 1 . Worker 5 | . . . . . 2 3 . Builder 3 | . . . . . 2 1 . Tunneler 1 | . . 1 . . . . . Hauler 1 | . . . . . 1 . . Recycler 4 | . . 1 . . 2 1 . Mechanic 1 | . . . . . 1 . . Operator 1 | . 1 . . . . . . Drone 5 | . . . . . . 5 . Swarmer 10 | . 3 3 . . . 4 . Grunt 15 | . . 4 . . 1 10 . Sentry 3 | . . . . . 3 . . Demolisher 1 | . . 1 . . . . . Assembled 14 | . . 14 . . . . . Best Kill Streak 16 | . 4 16 . . 5 12 . Combat Bots Only 14 | . 3 14 . . 1 8 . Max Kills in Single Turn 5 | . 1 4 . . 4 5 . Gunslinging . | . . . . . . . . Exploded 4 | . . 4 . . 1 2 . Melee . | . . . . . . . . Uniques/NPCs Destroyed . | . . . . . . . . Combat | -11 -10 -10 -10 -9 -8 -7 -7 -------- Run | Yrd Mat Min Exi Min Mat Fac Gar Hostile Shots Fired 190 | . 21 69 . . 25 67 8 Missed 69 | . 4 13 . . 8 43 1 Hits 121 | . 17 56 . . 17 24 7 Melee 9 | . . 2 . . . . 7 Projectile 112 | . 17 54 . . 17 24 . AOE 11 | . . 11 . . . . . Critical Strikes 3 | . . 1 . . . 1 1 Part Disruptions 1 | . . 1 . . . . . Damage Taken 2226 | . 138 1122 . . 298 351 317 Core 555 | . 46 187 . . 6 112 204 Absorbed by Shields 41 | . . . . . . . 41 Redirected to Shielding 30 | . . 30 . . . . . Core Remaining (%) 68 | 100 . . . 6 98 . . Volleys Fired 76 | . 12 28 . 1 15 17 3 Largest 2 | . 2 2 . 1 2 2 2 Hottest 150 | . 70 100 . 100 150 100 72 Shots Fired 114 | . 21 45 . 1 24 18 5 Gun 62 | . 18 35 . . 9 . . Cannon 10 | . . . . . 2 8 . Launcher 31 | . 3 10 . . 3 10 5 Special 11 | . . . . 1 10 . . Kinetic 12 | . 9 3 . . . . . Thermal 62 | . 9 32 . 1 12 8 . Explosive 31 | . 3 10 . . 3 10 5 Electromagnetic 9 | . . . . . 9 . . Robot Hit Streak 16 | . 5 12 . 3 16 3 3 Robot Miss Streak 4 | . 2 4 . . 2 1 . Penetration Max . | . . . . . . . . Secondary Targets 2 | . 2 . . . . . . Max Gunslinging Chain 1 | . 1 . . . . . . Shots Hit Robots 70 | . 13 31 . 1 17 6 2 Core Hits 117 | . 5 53 . . 15 42 2 Critical Kills . | . . . . . . . . Critical Parts Destroyed . | . . . . . . . . Critical Strikes 1 | . . . . . 1 . . Burn 1 | . . . . . 1 . . Melee Attacks . | . . . . . . . . Impact . | . . . . . . . . Slashing . | . . . . . . . . Piercing . | . . . . . . . . Sneak Attacks . | . . . . . . . . Combat Hostiles . | . . . . . . . . Follow-up Attacks . | . . . . . . . . Damage Inflicted 5853 | . 174 1480 . 15 968 2994 222 Guns 727 | . 174 337 . . 216 . . Cannons 885 | . . . . . 128 757 . Explosions 4104 | . . 1134 . . 530 2237 203 Melee . | . . . . . . . . Ramming 29 | . . 9 . 1 . . 19 Kinetic 125 | . 85 40 . . . . . Thermal 2696 | . 89 297 . 14 475 1821 . Explosive 2787 | . . 1134 . . 277 1173 203 Electromagnetic 216 | . . . . . 216 . . Impact . | . . . . . . . . Slashing . | . . . . . . . . Piercing . | . . . . . . . . Highest Corruption 4 | . 2 2 2 2 3 2 4 Average Corruption 2 | . 2 2 2 2 3 2 2 Corruption Purged . | . . . . . . . . Corruption Blocked . | . . . . . . . . Effects 37 | . 1 13 6 1 11 4 1 Message Errors 11 | . . 5 1 1 2 2 . Matter Fused 9 | . . 4 2 . 2 1 . Heat Flow Errors 7 | . . 3 2 . . 1 1 Energy Discharges 5 | . . . . . 5 . . Parts Rejected 1 | . 1 . . . . . . Data Loss (minor) 1 | . . . 1 . . . . Data Loss (major) 2 | . . 1 . . 1 . . Misfires 1 | . . . . . 1 . . Overload Shots . | . . . . . . . . Overflow Damage 357 | . . 15 . . 1 333 8 Projectiles 162 | . . . . . . 162 . Explosions 195 | . . 15 . . 1 171 8 Melee . | . . . . . . . . Knockbacks . | . . . . . . . . Impact . | . . . . . . . . Kinetic . | . . . . . . . . Secondary . | . . . . . . . . Self-Inflicted Damage 343 | . 3 78 . . 56 97 109 Shots 8 | . 1 3 . . 1 1 2 Rammed 5 | . . 1 . 1 . . 3 Targets Rammed 10 | . . 6 . 1 . . 3 Kicked 5 | . . 5 . . . . . Crushed . | . . . . . . . . Highest Temperature 437 | . 54 437 270 60 217 260 170 Average Temperature 100 | . 22 130 112 30 72 103 89 Received Heat Transfer 440 | . 12 293 . . 81 54 . Effects 2 | . . 2 . . . . . Energy Bleed 1 | . . 1 . . . . . Interference 1 | . . 1 . . . . . Siege Activations . | . . . . . . . . Martial Activations . | . . . . . . . . Shielding Activations . | . . . . . . . . Robots Disrupted 1 | . . . . . 1 . . Combat Hostiles . | . . . . . . . . Robots Corrupted . | . . . . . . . . Combat Hostiles . | . . . . . . . . Parts Fried . | . . . . . . . . Impact Corruptions . | . . . . . . . . Robots Melted . | . . . . . . . . Combat Hostiles . | . . . . . . . . Parts Melted 2 | . 1 . . . 1 . . Heat Transferred 4277 | . 259 888 . 80 1170 1880 . Parts Sabotaged . | . . . . . . . . Parts Stolen . | . . . . . . . . Parts Stripped . | . . . . . . . . Power Chain Reactions 1 | . . . . . 1 . . Alert | -11 -10 -10 -10 -9 -8 -7 -7 ------- Run | Yrd Mat Min Exi Min Mat Fac Gar Maximum Alert Level 3 | . . . . . 1 3 2 Low Security (%) 81 | 100 100 100 . 100 92 11 . Level 1 7 | . . . . . 7 28 27 Level 2 7 | . . . . . . 38 72 Level 3 3 | . . . . . . 20 . Level 4 . | . . . . . . . . Level 5 . | . . . . . . . . High Security . | . . . . . . . . Max Security . | . . . . . . . . Peak Influence 785 | . 69 148 . . 278 785 451 Initial 392 | . . 9 . . . 123 392 Average 102 | . 30 18 . . 42 462 428 Influence Increases 1945 | . 118 320 . . 470 968 69 Destroy 0b10 Robot/C 840 | . 60 160 . . 260 360 . Destroy 0b10 Robot/NC 105 | . 5 10 . . 50 40 . Destroy Leader 190 | . 10 40 . . 76 64 . Allied During Kill 370 | . . . . . 22 348 . Successful Hack 37 | . 14 . . . . 23 . Disable Machine 105 | . 15 30 . . 15 45 . Anti-Garrison Action 50 | . . . . . . . 50 Destroy Structure 203 | . 14 50 . . 47 73 19 Partial Spotted 15 | . . . . . . 15 . Lose Combat Pursuer 30 | . . 30 . . . . . Influence Decreases 1504 | . 94 204 140 . 198 679 189 Entered New Map 473 | . . 15 140 . . 149 169 Time Decay 541 | . 94 149 . . 128 170 . Lost Part 130 | . . 40 . . 10 60 20 Lost Ally 360 | . . . . . 60 300 . Squads Dispatched 7 | . 1 . . . 1 5 . Investigation 3 | . . . . . . 3 . Extermination 1 | . . . . . . 1 . Reinforcement 3 | . 1 . . . 1 1 . Assault . | . . . . . . . . Garrison . | . . . . . . . . Intercept . | . . . . . . . . Searches Triggered . | . . . . . . . . Construction Impeded 2 | . . . . . 1 1 . Haulers Reinforced . | . . . . . . . . Active Scanning Responses . | . . . . . . . . Cargo Convoy Interrupts . | . . . . . . . . Stealth | -11 -10 -10 -10 -9 -8 -7 -7 --------- Run | Yrd Mat Min Exi Min Mat Fac Gar Distress Signals 2 | . . . . . . 2 . Communications Jammed . | . . . . . . . . Distress Signals . | . . . . . . . . Times Spotted 77 | . 7 27 . . 15 26 2 Peak Tracking Total 10 | . 4 10 . . 4 5 2 Tactical Retreats 3 | . . 3 . . . . . Traps | -11 -10 -10 -10 -9 -8 -7 -7 ------- Run | Yrd Mat Min Exi Min Mat Fac Gar Traps Triggered 3 | . 1 . . . . . 2 Indirectly . | . . . . . . . . Trap Hack Attempts . | . . . . . . . . Triggered . | . . . . . . . . Disarmed . | . . . . . . . . Reprogrammed . | . . . . . . . . Reused . | . . . . . . . . Traps Extracted . | . . . . . . . . Installed . | . . . . . . . . Triggered . | . . . . . . . . Machines | -11 -10 -10 -10 -9 -8 -7 -7 ---------- Run | Yrd Mat Min Exi Min Mat Fac Gar Machines Disabled 8 | . 1 2 . . 1 3 1 Max in Single Turn 2 | . 1 1 . . 1 2 1 Garrison Relay 1 | . . . . . . . 1 Machines Repaired . | . . . . . . . . Machines Dismantled . | . . . . . . . . Machines Sabotaged . | . . . . . . . . Overloaded Fab Kills . | . . . . . . . . Hacking | -11 -10 -10 -10 -9 -8 -7 -7 --------- Run | Yrd Mat Min Exi Min Mat Fac Gar Machines Accessed 10 | . 3 . 2 . 1 4 . Terminals 6 | . 3 . . . 1 2 . Fabricators . | . . . . . . . . Repair Stations 1 | . . . . . . 1 . Recycling Units . | . . . . . . . . Scanalyzers . | . . . . . . . . Garrison Access 1 | . . . . . . 1 . Total Hacks 29 | . 13 . 2 . 2 12 . Successful 15 | . 7 . 2 . 1 5 . Failed 14 | . 6 . . . 1 7 . Catastrophic 3 | . 1 . . . . 2 . Database Lockouts . | . . . . . . . . Manual 7 | . 5 . 1 . 1 . . Terminals 24 | . 13 . . . 2 9 . Fabricators . | . . . . . . . . Repair Stations 2 | . . . . . . 2 . Recycling Units . | . . . . . . . . Scanalyzers . | . . . . . . . . Garrison Access 1 | . . . . . . 1 . Terminal Hacks 13 | . 6 . 2 . 1 4 . Record 1 | . . . 1 . . . . Robot Analysis 1 | . . . . . 1 . . Branch Access Points 1 | . 1 . . . . . . Emergency Access Points 1 | . . . . . . 1 . Alert Level 1 | . . . . . . 1 . Dispatch Records 2 | . 1 . . . . 1 . Patrol Status 1 | . 1 . . . . . . Transport Status 1 | . 1 . . . . . . Investigation Status 1 | . 1 . . . . . . Hauler Manifests 1 | . . . . . . 1 . Registered Components 1 | . 1 . . . . . . Proto ID Catalog 1 | . . . 1 . . . . Fabricator Hacks . | . . . . . . . . Repair Station Hacks . | . . . . . . . . Recycling Unit Hacks . | . . . . . . . . Scanalyzer . | . . . . . . . . Garrison Access Hacks 1 | . . . . . . 1 . Unlock Access 1 | . . . . . . 1 . Unauthorized Hacks 1 | . 1 . . . . . . Terminals 1 | . 1 . . . . . . Botnet 1 | . 1 . . . . . . Fabricators . | . . . . . . . . Repair Stations . | . . . . . . . . Recycling Units . | . . . . . . . . Scanalyzers . | . . . . . . . . Garrison Access . | . . . . . . . . Data Cores Recovered . | . . . . . . . . Used . | . . . . . . . . Hacking Detections 8 | . 3 . . . 1 4 . Full Trace Events 2 | . . . . . . 2 . Feedback Events . | . . . . . . . . Feedback Blocked . | . . . . . . . . Robot Schematics Acquired . | . . . . . . . . Robots Built . | . . . . . . . . Authchips . | . . . . . . . . Time . | . . . . . . . . Total Robot Build Rating . | . . . . . . . . Part Schematics Acquired . | . . . . . . . . Parts Built . | . . . . . . . . Authchips . | . . . . . . . . Time . | . . . . . . . . Total Part Build Rating . | . . . . . . . . Part Studies Acquired . | . . . . . . . . Parts Repaired . | . . . . . . . . Time . | . . . . . . . . Parts Recycled . | . . . . . . . . Recycled Matter . | . . . . . . . . Retrieved Matter . | . . . . . . . . Retrieved Components . | . . . . . . . . Parts Scanalyzed . | . . . . . . . . Part Schematics Acquired . | . . . . . . . . Parts Damaged . | . . . . . . . . Bothacking | -11 -10 -10 -10 -9 -8 -7 -7 ------------ Run | Yrd Mat Min Exi Min Mat Fac Gar Used RIF Installer . | . . . . . . . . Robots Hacked . | . . . . . . . . Non-combat . | . . . . . . . . Combat . | . . . . . . . . Robot Hacks Applied . | . . . . . . . . Relay Couplers Released 5 | . . . . . . . 5 Machine Destruction 5 | . . . . . . . 5 Fabnet Peak Effective % . | . . . . . . . . Robots Rewired . | . . . . . . . . Allies Hacked . | . . . . . . . . Hacks Repelled . | . . . . . . . . Allies | -11 -10 -10 -10 -9 -8 -7 -7 -------- Run | Yrd Mat Min Exi Min Mat Fac Gar Total Allies . | . . . . . . . . Largest Group . | . . . . . . . . Highest-Rated Group . | . . . . . . . . Highest-Rated Ally . | . . . . . . . . Total Orders 4 | . . . . . 1 3 . FOLLOW 2 | . . . . . . 2 . EXPLORE 2 | . . . . . 1 1 . Ally Attacks 131 | . . . . . 46 85 . Total Damage 2308 | . . . . . 975 1333 . Kills 20 | . . . . . 11 9 . Allies Corrupted . | . . . . . . . . Allies Melted . | . . . . . . . . Intel | -11 -10 -10 -10 -9 -8 -7 -7 ------- Run | Yrd Mat Min Exi Min Mat Fac Gar Active Infowar (turns) 348 | . 46 226 . . . 40 36 Seismic 272 | . 46 226 . . . . . Machine Analysis 76 | . . . . . . 40 36 Robot Analysis Total 1 | . . . . . 1 . . Derelict Logs Recovered 3 | . . 2 . 1 . . . Drone Launches 30 | . . . . . 5 25 . Drone Recoveries . | . . . . . . . . Exploration | -11 -10 -10 -10 -9 -8 -7 -7 ------------- Run | Yrd Mat Min Exi Min Mat Fac Gar Turns Passed 2831 | 2 212 628 614 185 807 347 36 Spaces Moved 1744 | 2 140 355 456 111 291 344 45 Core 283 | . . 131 118 . . 34 . Treads 726 | . . 155 338 111 122 . . Legs 208 | 2 140 66 . . . . . Wheels 293 | . . 3 . . 169 121 . Hover . | . . . . . . . . Flight 234 | . . . . . . 189 45 Fastest Speed 32 | 120 120 50 50 160 140 32 35 Average Speed 134 | 120 120 111 132 160 246 77 35 Slowest Speed 480 | 120 120 200 240 160 480 400 35 Overloaded Moves 23 | . . . . . . 23 . Propulsion Burnouts . | . . . . . . . . Robots Hopped 4 | . . . . . . 2 2 Potential Cave-ins 4 | . . 4 . . . . . Cave-ins Triggered . | . . . . . . . . Exploration Rate (%) 32 | 2 26 66 76 31 36 16 8 Regions Visited 7 Branch Regions 3 Pre-discovered Areas 3 | . . 1 1 1 . . . Known Exits Taken 2 | . 1 . . . . 1 . Unknown Exits Taken 5 | 1 . 1 1 1 1 . . Scrap Searched 2 | . . 1 . 1 . . . Spaces Dug 3 | . . 3 . . . . . Terrain Destroyed 235 | . 20 61 . . 47 78 29 Melee . | . . . . . . . . Projectile 2 | . . . . . 1 1 . AOE 233 | . 20 61 . . 46 77 29 Terrain Rammed . | . . . . . . . . Walls Destroyed . | . . . . . . . . Machines Disabled . | . . . . . . . . Actions | -11 -10 -10 -10 -9 -8 -7 -7 --------- Run | Yrd Mat Min Exi Min Mat Fac Gar Total 2075 | 1 162 535 469 116 351 383 58 Wait 154 | . 1 127 . 3 9 13 1 Move 1730 | 1 139 354 455 110 290 340 41 Hop 4 | . . . . . . 2 2 Pick Up 15 | . 3 1 3 . 8 . . Fast Attach 16 | . 2 2 1 1 6 4 . Attach 16 | . . 6 3 . 1 3 3 Detach 10 | . . 3 1 . 2 3 1 Swap 20 | . 3 7 1 . 8 1 . Drop 20 | . 2 1 5 . 12 . . Fire 76 | . 12 28 . 1 15 17 3 Melee . | . . . . . . . . Ram 3 | . . . . . . . 3 Kick 5 | . . 5 . . . . . Crush 2 | . . 1 . 1 . . . Escape Stasis 4 | . . . . . . . 4 Rewire . | . . . . . . . . Trap . | . . . . . . . . Miscellaneous . | . . . . . . . . Route ------- -11/Scrapyard -10/Materials -10/Mines (discovered 3 exits: Mat / *Exi / [*Sub]) -10/Exiles -9/Mines -8/Materials -7/Factory -7/Garrison History --------- Turn | Location | Event 1 | -11/Scrapyard | Discovered new exit (range 1) 3 | -11/Scrapyard | Entered Materials 140 | -10/Materials | Discovered new exit (range 14) 152 | -10/Materials | Identified exit to Mines 215 | -10/Materials | Entered Mines 216 | -10/Mines | Assembled infested the area 221 | -10/Mines | Assisted by a Guerilla fighting off Assembled 303 | -10/Mines | Destroyed 14 combat bots 306 | -10/Mines | Build established: Mutant 474 | -10/Mines | Core integrity fell below 50% 498 | -10/Mines | Lost 3 parts (1p2n) 562 | -10/Mines | Discovered new exit (range 12) 763 | -10/Mines | Core integrity fell below 20% 776 | -10/Mines | Identified exit to Materials 780 | -10/Mines | Learned 2 Materials zone layouts 787 | -10/Mines | A weapon hastily lodged in a ceiling crevice suddenly fell to the ground 828 | -10/Mines | Learned location of Storage (-7) 841 | -10/Mines | Deemed a non-threat by the Exiles lab entrance 841 | -10/Mines | Discovered new exit (range 5) 843 | -10/Mines | Entered Exiles 856 | -10/Exiles | Met 8R-AWN 865 | -10/Exiles | Met EX-HEX 880 | -10/Exiles | Met EX-BIN 887 | -10/Exiles | Aligned with FarCom system 888 | -10/Exiles | Given EX-Vault access code 900 | -10/Exiles | Opened EX-Vault 903 | -10/Exiles | Found YOLO Cannon 953 | -10/Exiles | Warned to stay clear of 0b10 Research branches 1003 | -10/Exiles | Met EX-DEC 1009 | -10/Exiles | Learned location of Zion (-7) 1074 | -10/Exiles | Visited The Gauntlet 1224 | -10/Exiles | Found Chronowheel 1232 | -10/Exiles | Found Army-in-a-Box 1442 | -10/Exiles | Discovered new exit (range 10) 1457 | -10/Exiles | Stole two prototypes: Army-in-a-Box, YOLO Cannon 1457 | -10/Exiles | Entered Mines 1628 | -9/Mines | Discovered new exit (range 8) 1642 | -9/Mines | Entered Materials 1642 | -8/Materials | Evolved 4 slots: Utility x4 2403 | -8/Materials | Discovered new exit (range 17) 2449 | -8/Materials | Entered Factory 2449 | -7/Factory | Accompanied by 2 allies 2449 | -7/Factory | Evolved 2 slots: Propulsion x1, Utility x1 2451 | -7/Factory | FarCom data flow suspended 2656 | -7/Factory | YOLO Cannon suddenly exploded 2657 | -7/Factory | Core integrity fell below 50% 2660 | -7/Factory | Murdered 3 allies 2687 | -7/Factory | Lost 5 parts (3n1u1w) 2705 | -7/Factory | Destroyed 8 combat bots 2705 | -7/Factory | Lost 7 allies 2796 | -7/Factory | Identified exit to Garrison 2796 | -7/Factory | Entered Garrison 2806 | -7/Garrison | Triggered checkpoint 2806 | -7/Garrison | Garrison Relay disabled 2819 | -7/Garrison | Core integrity fell below 20% 2820 | -7/Garrison | Lost 3 allies 2832 | -7/Garrison | Self-destructed Last Messages --------------- 02811_ A bubble of rippling energy engulfs the area. 02811_ Field strength at 94. 02816_ Imp. Grenade Launcher destroyed. 02816_ Destroyed Imp. Grenade Launcher. 02818_ System corrupted: Heat flow error (+180). 02818_ Imp. Grenade Launcher destroyed. 02820_ The unstable cave ceiling collapses. 02822_ Slammed into A-27 Freighter. 02823_ Destabilizing: System interference. 02823_ Armor Integrity Analyzer temporarily disabled. 02824_ Slammed into A-27 Freighter. 02824_ Destabilizing: System corrupted (+2). 02827_ Triggered Stasis Trap. 02827_ A bubble of rippling energy engulfs the area. 02827_ Field strength at 94. 02828_ Field strength at 88. 02829_ Field strength at 81. 02830_ Field strength at 74. 02830_ Cld. VTOL Module severed. 02831_ Field strength at 60. Map ----- +----------------------------------------------------+ | | | | | | | | | | | | | | | | | | | | | | | | | | | | | | | ???????????????????????????????????????????? | | ???????????????????????????????????????????? | | ???????????????????????????????????????????? | | ???????????????????????????????????????????? | | ???????????????????????????????????????????? | | ???????????????????????????????????????????? | | ??????????????##########???????????????????? | | ????????# ???# # #???????????????????? | | ????????# # ## ## ### #???????????????? | | ????????# #???????????????? | | ?????????# =@l #???????????????????? | | ?????????# # #l #???????????????????? | | ??????????# #?# ## ###?????????????????? | | ??????????# #?####### ##????????????????? | | ??????????# #??????# A#????????????????? | | ??????????# #??????# A #????????????????? | | ??????????# #??????# A#????????????????? | | ??????????# "??????# #????????????????? | | ??????????# "??????## ##????????????????? | | ??????????# "???????#####?????????????????? | | ??????????# #?????????????????????????????? | | ??????????# #?????????????????????????????? | | ??????????# #####################?????????? | | ??????????# #???????? | | ??????????# #???????? | | ??????????########### ######?????????????? | | ????????????????????# #??????????????????? | | ????????????????????#####??????????????????? | | ???????????????????????????????????????????? | | ???????????????????????????????????????????? | | ???????????????????????????????????????????? | | ???????????????????????????????????????????? | | ???????????????????????????????????????????? | | ???????????????????????????????????????????? | | ???????????????????????????????????????????? | +----------------------------------------------------+ Best States ------------- Heat Dissipation 34 Energy Generation 18 Energy Capacity 310 Matter Stores 300 Matter Capacity 300 Sight Range 16 Terrain Scan Density 10 Core Shielding 20 Evasion (%) 63 Armor Integrity Analysis 30 Recoil Reduction 2 Offensive Hacking 10 Item Schematics ----------------- None Robot Schematics ------------------ None Fabricated ------------ Nothing Repaired ---------- Nothing Studied --------- None Alien Tech Used ----------------- None Achievements -------------- YOLO Challenges ------------ None Game ------ Seed SigixNavigationMagmablaster Manual? 0 Play Time 00:19:31 Cumulative 1297.0 hours Start 2026.04.03 @ 19:33:33 End 2026.04.03 @ 19:57:14 Sessions 1 Manual Loads 0 Difficulty Rogue Special Mode None Game No. 1593 Rogue 1309 Adventurer 124 Explorer 160 Win Type - Total 63 Types 49/0/8/4/1/0/0/1/0/0 Lore% 93 Gallery% 84 Achievement% 70 Wizard Run 0 Options --------- Layout 0 ASCII 0 Keyboard 1 Movement Numpad Keybinds 0 Fullscreen 2 Font 18/X11 Map View 76x50 Zoom Use 0% Tactical HUD 1 Map Filters NONE Filters NONE Steam 1 RUN: 3828c068-23ec-4e7d-a247-e09a24a7e025